[Event "8th Amsterdam Summer Open-A 2018"]
[Site "Amsterdam"]
[Date "2018.07.08"]
[Round "2"]
[White "Theulings, Paul-Peter"]
[Black "De Boer, Eelke"]
[Result "0-1"]
[ECO "E63"]
[WhiteElo "2088"]
[BlackElo "2317"]
[Annotator "NA"]
[PlyCount "64"]
[EventDate "2018.07.07"]
[EventType "swiss"]
[EventCountry "NED"]
[SourceTitle "playchess.com"]
[Source "ChessBase"]
[SourceQuality "1"]
[TimeControl "40/5400+30:1800+30"]

1. Nf3 {[%emt 0:00:00]} Nf6 {[%emt 0:00:21]} 2. c4 {[%emt 0:00:00]} g6 {[%emt 0:00:05]} 3. g3 {[%emt 0:00:00]} Bg7 {[%emt 0:00:07]} 4. Bg2 {[%emt 0:00:03]} O-O {[%emt 0:00:08]} 5. d4 {[%emt 0:00:07]} d6 {[%emt 0:00:09]} 6. Nc3 {[%emt 0:00:07]} Nc6 {[%emt 0:00:05]} 7. O-O {[%emt 0:00:08]} a6 {[%emt 0:00:03]} 8. h3 {[%emt 0:00:08]} Bd7 {[%emt 0:00:10]} 9. Be3 {[%emt 0:09:14]} Rb8 {[%emt 0:16:05]} 10. b3 {[%emt 0:12:26] E63: King's Indian: Fianchetto: Panno Variation with 7...a6} (10. a4 a5 11. Qc1 Re8 12. d5 Nb4 13. Rd1 Qc8 14. Kh2 e5 15. c5 dxc5 16. Bxc5 b6 17. Be3 c6 18. dxc6 Bxc6 {1-0 (45) Cordova,E (2645)-Cuenca Jimenez,J (2477) Leon 2017}) 10... b5 {[%emt 0:03:17]} 11. d5 {[%emt 0:05:31]} Na5 {[%emt 0:01:06]} 12. c5 $146 {[%emt 0:02:48]} ({Predecessor:} 12. cxb5 axb5 13. Rc1 c5 14. dxc6 Bxc6 15. Nd4 Bxg2 16. Kxg2 b4 17. Na4 Nd5 18. Bg5 {1-0 (48) Mozny,M (2385)-Ponizil,C (2304) Czechia 2009}) 12... b4 {[%emt 0:10:26]} 13. Na4 {[%emt 0:01:37]} Bxa4 $1 {[%emt 0:01:53]} 14. bxa4 {[%emt 0:00:09]} dxc5 {[%emt 0:00:12]} 15. Bxc5 {[%emt 0:09:06]} Nxd5 {[%emt 0:00:18]} 16. Rc1 {[%emt 0:08:19]} Nb7 {[%emt 0:06:46]} 17. Ba7 {[%emt 0:03:33]} Ra8 {[%emt 0:19:24]} 18. Bd4 {[%emt 0:01:12]} c5 {[%emt 0:04:29]} 19. Bxg7 {[%emt 0:09:27]} Kxg7 {[%emt 0:00:24]} 20. Ng5 {[%emt 0:04:36]} e6 {[%emt 0:02:01]} 21. Ne4 {[%emt 0:00:05]} Rc8 {[%emt 0:00:13]} 22. Nxc5 {[%emt 0:06:44]} Nxc5 {[%emt 0:01:01]} 23. Rxc5 {[%emt 0:00:16]} Nc3 {[%emt 0:00:19]} 24. Qxd8 {[%emt 0:01:02]} Nxe2+ {[%emt 0:00:11]} ({Finger weg von} 24... Rcxd8 25. Bf3 $17) 25. Kh2 {[%emt 0:00:23]} Rfxd8 {[%emt 0:00:11]} 26. Rxc8 {[%emt 0:04:09]} Rxc8 {[%emt 0:00:13]} 27. Bb7 {[%emt 0:00:10]} Rc2 {[%emt 0:07:38]} 28. Bxa6 {[%emt 0:00:15]} Nc3 {[%emt 0:01:43]} 29. Bc4 {[%emt 0:01:32]} Nxa2 {[%emt 0:04:22]} 30. Ra1 $2 {[%emt 0:00:18]} (30. Bb3 $17 Rb2 31. Bc4) 30... Nc1 {[%emt 0:01:23]} 31. a5 {[%emt 0:03:46]} Rxc4 {[%emt 0:02:41]} 32. a6 {[%emt 0:00:19]} Rc8 $19 {[%emt 0:00:21]} 0-1

[Event "8th Amsterdam Summer Open-A 2018"]
[Site "Amsterdam"]
[Date "2018.07.08"]
[Round "2"]
[White "Romkes, Abel"]
[Black "Floor, Dirk"]
[Result "0-1"]
[ECO "B40"]
[WhiteElo "2018"]
[BlackElo "2196"]
[Annotator "NA"]
[PlyCount "80"]
[EventDate "2018.07.07"]
[EventType "swiss"]
[EventCountry "NED"]
[SourceTitle "playchess.com"]
[Source "ChessBase"]
[SourceQuality "1"]
[TimeControl "40/5400+30:1800+30"]

1. e4 {[%emt 0:00:00]} c5 {[%emt 0:00:16]} 2. Nf3 {[%emt 0:00:00]} e6 {[%emt 0:00:08]} 3. d4 {[%emt 0:00:10]} cxd4 {[%emt 0:00:09]} 4. Nxd4 {[%emt 0:00:06]} Nc6 {[%emt 0:00:26]} 5. Nc3 {[%emt 0:00:28]} Nf6 {[%emt 0:01:00]} 6. Nxc6 {[%emt 0:02:19]} bxc6 {[%emt 0:00:13]} 7. Bd3 {[%emt 0:02:47]} d5 {[%emt 0:01:41]} 8. O-O {[%emt 0:01:43]} Be7 {[%emt 0:02:02]} 9. Re1 {[%emt 0:11:13]} d4 {[%emt 0:09:40] B40: Sicilian: 2...e6, Unusual lines} 10. Ne2 {[%emt 0:02:28]} e5 {[%emt 0:01:33]} 11. Ng3 {[%emt 0:05:04]} g6 {[%emt 0:02:11]} 12. Bc4 $146 {[%emt 0:06:51]} ({Predecessor:} 12. h3 O-O 13. f4 exf4 14. Bxf4 Be6 15. e5 Nd5 16. Bh6 Re8 17. Ne4 {0-1 (58) Melia,S (2439)-Gaponenko,I (2469) Khanty-Mansiysk 2010}) 12... h5 {[%emt 0:05:58]} 13. Qd3 {[%emt 0:06:04]} Rb8 {[%emt 0:04:59]} 14. Nf1 {[%emt 0:07:57]} Kf8 {[%emt 0:03:43]} 15. Nd2 {[%emt 0:01:30]} Kg7 {[%emt 0:02:07]} 16. Ba6 {[%emt 0:07:30]} Bxa6 {[%emt 0:08:42]} 17. Qxa6 {[%emt 0:00:06]} Qc7 {[%emt 0:00:31]} 18. a3 {[%emt 0:16:04]} Nd7 {[%emt 0:04:11]} 19. Qe2 {[%emt 0:00:17]} a5 {[%emt 0:05:15]} 20. Nc4 {[%emt 0:01:40]} a4 {[%emt 0:01:12]} 21. Bd2 {[%emt 0:01:08]} Rb5 {[%emt 0:04:01]} 22. Rad1 {[%emt 0:01:39]} Nc5 {[%emt 0:01:49]} 23. Bc1 {[%emt 0:02:23]} Ne6 {[%emt 0:03:14]} 24. Qd3 {[%emt 0:06:00]} Nc5 {[%emt 0:03:22]} 25. Qe2 {[%emt 0:00:14]} Nb7 {[%emt 0:01:28]} 26. Qd3 {[%emt 0:01:31]} Rd8 {[%emt 0:06:19]} 27. Rf1 {[%emt 0:04:53]} Nc5 {[%emt 0:00:20]} 28. Qe2 $11 {[%emt 0:01:07]} Ne6 {[%emt 0:01:08]} 29. g3 {[%emt 0:02:34]} h4 {[%emt 0:04:17]} 30. Qg4 {[%emt 0:01:44]} Rh8 {[%emt 0:03:04]} 31. Kh1 {[%emt 0:03:19]} Rh5 {[%emt 0:01:50]} 32. Kg1 {[%emt 0:00:19]} Qb8 {[%emt 0:01:26]} 33. Qe2 {[%emt 0:00:28]} Rc5 {[%emt 0:02:22]} 34. Qd3 {[%emt 0:00:58]} f5 {[%emt 0:03:36]} 35. Rfe1 {[%emt 0:01:01]} hxg3 {[%emt 0:03:25]} 36. fxg3 {[%emt 0:00:08]} f4 {[%emt 0:00:30]} 37. gxf4 {[%emt 0:01:56]} exf4 {[%emt 0:00:13]} 38. Rf1 {[%emt 0:01:36]} Rcg5+ {[%emt 0:04:38]} 39. Kh1 {[%emt 0:00:05]} Rxh2+ {[%emt 0:00:50]} 40. Kxh2 {[%emt 0:00:05]} f3+ {[%emt 0:00:25]} 0-1

[Event "8th Amsterdam Summer Open-A 2018"]
[Site "Amsterdam"]
[Date "2018.07.08"]
[Round "2"]
[White "Gouw, Carol-Peter"]
[Black "Elgersma, Simon"]
[Result "1/2-1/2"]
[ECO "A36"]
[WhiteElo "2005"]
[BlackElo "2263"]
[Annotator "NA"]
[PlyCount "91"]
[EventDate "2018.07.07"]
[EventType "swiss"]
[EventCountry "NED"]
[SourceTitle "playchess.com"]
[Source "ChessBase"]
[SourceQuality "1"]
[TimeControl "40/5400+30:1800+30"]

1. c4 {[%emt 0:00:00]} Nf6 {[%emt 0:00:00]} 2. Nc3 {[%emt 0:00:00]} g6 {[%emt 0:00:00]} 3. e4 {[%emt 0:00:00]} d6 {[%emt 0:00:00]} 4. g3 {[%emt 0:00:00]} Bg7 {[%emt 0:00:00]} 5. Bg2 {[%emt 0:00:00]} c5 {[%emt 0:01:01]} 6. Nge2 {[%emt 0:00:06]} Nc6 {[%emt 0:00:06]} 7. O-O {[%emt 0:00:07]} O-O {[%emt 0:00:08]} 8. d3 {[%emt 0:00:04]} Ne8 {[%emt 0:00:14]} 9. Be3 {[%emt 0:02:19]} Nc7 {[%emt 0:05:37]} 10. h3 {[%emt 0:04:26] A36: Symmetrical English vs ...g6: 4 Bg2 Bg7} Nd4 {[%emt 0:06:34]} 11. Rb1 {[%emt 0:01:41]} Rb8 {[%emt 0:12:23]} 12. b4 {[%emt 0:04:49]} b6 {[%emt 0:03:06]} 13. f4 {[%emt 0:05:00]} Bd7 {[%emt 0:07:27]} 14. b5 {[%emt 0:10:47] [#]} e6 $146 {[%emt 0:06:46]} ({Predecessor:} 14... f5 15. Kh2 e6 16. a4 Qe7 17. Qd2 Rbe8 18. Rbe1 Qd8 {0-1 (58) Weber,U (2285)-Schmaltz,R (2529) Bad Wiessee 2002}) 15. a4 {[%emt 0:03:29]} Qe7 {[%emt 0:10:36]} 16. Bf2 {[%emt 0:06:17]} e5 {[%emt 0:04:20]} 17. a5 {[%emt 0:11:47]} Nxe2+ {[%emt 0:13:22]} 18. Nxe2 {[%emt 0:01:11]} f5 {[%emt 0:02:22]} 19. axb6 {[%emt 0:08:31]} axb6 {[%emt 0:00:02]} 20. exf5 {[%emt 0:04:27]} gxf5 {[%emt 0:02:39]} 21. Qc2 {[%emt 0:07:00]} Qf6 {[%emt 0:03:23]} 22. Ra1 {[%emt 0:01:17]} Rf7 {[%emt 0:01:31]} 23. Ra7 {[%emt 0:01:04]} Ne6 {[%emt 0:04:57]} 24. Nc3 {[%emt 0:08:29]} exf4 $14 {[%emt 0:03:54]} 25. Nd5 {[%emt 0:00:26]} Qg6 {[%emt 0:00:33]} 26. Nxf4 {[%emt 0:04:34]} Nxf4 {[%emt 0:00:15]} 27. gxf4 {[%emt 0:00:08]} Bc6 {[%emt 0:00:11]} 28. bxc6 {[%emt 0:02:41]} Rxa7 {[%emt 0:00:02]} 29. Kh2 {[%emt 0:01:04]} Kh8 {[%emt 0:00:24]} 30. Bd5 {[%emt 0:02:13]} Re7 {[%emt 0:04:03]} 31. Rg1 {[%emt 0:05:00]} Qf6 {[%emt 0:03:35]} 32. Rg2 {[%emt 0:02:50]} Rbe8 {[%emt 0:01:40]} 33. Qa4 {[%emt 0:02:01]} Bh6 {[%emt 0:00:51]} 34. Bg3 {[%emt 0:00:22]} Rg7 {[%emt 0:01:09]} 35. c7 {[%emt 0:00:11]} Rf8 {[%emt 0:01:34]} 36. Qc6 {[%emt 0:00:26]} Rc8 {[%emt 0:00:50]} 37. Re2 {[%emt 0:00:13]} Qf8 {[%emt 0:00:55]} 38. Qxb6 {[%emt 0:01:43]} Rcxc7 {[%emt 0:01:02]} 39. Qxd6 {[%emt 0:00:27]} Rce7 {[%emt 0:01:05]} 40. Re6 {[%emt 0:01:27]} Qe8 {[%emt 0:00:50]} 41. Rxe7 {[%emt 0:06:01]} Rxe7 {[%emt 0:00:23]} 42. Qxh6 {[%emt 0:00:12]} Re2+ {[%emt 0:07:33]} 43. Kh1 {[%emt 0:04:41]} Re1+ {[%emt 0:04:36]} 44. Bxe1 {[%emt 0:00:13]} Qxe1+ {[%emt 0:00:02]} 45. Kh2 {[%emt 0:01:26]} Qg1+ {[%emt 0:00:06]} 46. Kxg1 {[%emt 0:00:09]} 1/2-1/2

[Event "8th Amsterdam Summer Open-A 2018"]
[Site "Amsterdam"]
[Date "2018.07.08"]
[Round "2"]
[White "Frans, Richard"]
[Black "Elgersma, Onno"]
[Result "0-1"]
[ECO "C02"]
[WhiteElo "2001"]
[BlackElo "2150"]
[Annotator "NA"]
[PlyCount "44"]
[EventDate "2018.07.07"]
[EventType "swiss"]
[EventCountry "NED"]
[SourceTitle "playchess.com"]
[Source "ChessBase"]
[SourceQuality "1"]
[TimeControl "40/5400+30:1800+30"]

1. e4 {[%emt 0:00:00]} e6 {[%emt 0:00:00]} 2. d4 {[%emt 0:00:00]} d5 {[%emt 0:00:00]} 3. e5 {[%emt 0:00:44]} c5 {[%emt 0:00:07]} 4. c3 {[%emt 0:00:05]} Nc6 {[%emt 0:00:05]} 5. Nf3 {[%emt 0:00:10]} Bd7 {[%emt 0:00:26]} 6. Be2 {[%emt 0:02:43]} f6 {[%emt 0:01:05]} 7. Bf4 {[%emt 0:19:43]} Qb6 {[%emt 0:10:59]} 8. Qd2 {[%emt 0:21:18]} cxd4 {[%emt 0:07:09]} 9. cxd4 $2 {[%emt 0:00:55]} (9. O-O $15) 9... g5 {[%emt 0:01:58]} 10. exf6 {[%emt 0:40:59]} gxf4 {[%emt 0:01:45]} 11. Qxf4 {[%emt 0:00:56]} O-O-O {[%emt 0:05:59]} 12. O-O {[%emt 0:04:30]} Qxb2 {[%emt 0:09:18]} 13. f7 $19 {[%emt 0:01:45]} Qxa1 {[%emt 0:02:04]} 14. fxg8=Q {[%emt 0:00:49]} Rxg8 {[%emt 0:00:10]} 15. Qd2 {[%emt 0:00:14]} Bb4 {[%emt 0:00:52]} 16. Qc2 {[%emt 0:00:35]} Kb8 {[%emt 0:00:34]} 17. Rd1 {[%emt 0:01:07]} Rg4 {[%emt 0:02:14]} 18. a3 {[%emt 0:01:30]} Ba5 {[%emt 0:00:56]} 19. Qa4 {[%emt 0:00:32]} Qb2 {[%emt 0:06:23]} 20. Nbd2 {[%emt 0:00:41]} Nxd4 {[%emt 0:01:34]} 21. Qxa5 {[%emt 0:00:12]} Nxe2+ {[%emt 0:00:08]} 22. Kf1 {[%emt 0:00:57]} b6 {[%emt 0:00:16]} 0-1

[Event "8th Amsterdam Summer Open-A 2018"]
[Site "Amsterdam"]
[Date "2018.07.08"]
[Round "2"]
[White "Azikri, Gur"]
[Black "Kossen, Johannes"]
[Result "0-1"]
[ECO "D02"]
[WhiteElo "1941"]
[BlackElo "2095"]
[Annotator "NA"]
[PlyCount "130"]
[EventDate "2018.07.07"]
[EventType "swiss"]
[EventCountry "NED"]
[SourceTitle "playchess.com"]
[Source "ChessBase"]
[SourceQuality "1"]
[TimeControl "40/5400+30:1800+30"]

1. d4 {[%emt 0:00:00]} d5 {[%emt 0:00:00]} 2. Bf4 {[%emt 0:00:11]} c5 {[%emt 0:01:32]} 3. e3 {[%emt 0:02:04]} Nc6 {[%emt 0:00:14]} 4. Nf3 {[%emt 0:04:58]} Nf6 {[%emt 0:03:30]} 5. Nc3 {[%emt 0:10:15]} Nh5 {[%emt 0:05:56]} 6. dxc5 {[%emt 0:00:45]} Nxf4 {[%emt 0:00:23]} 7. exf4 {[%emt 0:00:01]} e6 {[%emt 0:00:33]} 8. Na4 {[%emt 0:05:28]} Qa5+ {[%emt 0:09:53]} 9. c3 {[%emt 0:00:28]} b5 {[%emt 0:00:20]} 10. cxb6 {[%emt 0:08:21]} axb6 {[%emt 0:00:14]} 11. Qb3 {[%emt 0:14:53]} Qxa4 {[%emt 0:00:18]} 12. Qxa4 {[%emt 0:00:01]} Rxa4 {[%emt 0:00:06]} 13. Bb5 {[%emt 0:00:15]} Re4+ {[%emt 0:00:04]} 14. Kd2 {[%emt 0:01:48]} Bd7 {[%emt 0:00:19]} 15. g3 {[%emt 0:00:33]} Be7 {[%emt 0:20:58]} 16. Bxc6 {[%emt 0:02:09]} Bxc6 {[%emt 0:00:08]} 17. Nd4 {[%emt 0:00:07]} Kd7 {[%emt 0:02:10]} 18. f3 {[%emt 0:00:16]} Rxd4+ 19. cxd4 {[%emt 0:00:01]} Ra8 {[%emt 0:03:46]} 20. Ke3 {[%emt 0:06:47]} Ra4 {[%emt 0:02:15]} 21. b3 {[%emt 0:01:41]} Rb4 {[%emt 0:10:05]} 22. Rac1 {[%emt 0:01:53]} Bd6 {[%emt 0:11:28]} 23. Rhe1 {[%emt 0:08:17]} Rb5 {[%emt 0:04:20]} 24. Rc2 {[%emt 0:05:19]} Ba3 {[%emt 0:00:17]} 25. Kf2 {[%emt 0:09:45]} Ra5 {[%emt 0:00:21]} 26. h4 {[%emt 0:00:18]} Ra7 {[%emt 0:01:08]} 27. Ke3 {[%emt 0:01:32]} Rc7 {[%emt 0:00:14]} 28. Ree2 {[%emt 0:01:53]} Bb5 {[%emt 0:01:12]} 29. Rxc7+ {[%emt 0:00:32]} Kxc7 {[%emt 0:00:01]} 30. Rc2+ {[%emt 0:00:13]} Kd7 {[%emt 0:00:20]} 31. g4 $19 {[%emt 0:02:23]} Bc6 {[%emt 0:01:52]} 32. h5 {[%emt 0:00:26]} b5 {[%emt 0:04:07]} 33. g5 {[%emt 0:04:09]} Bd6 {[%emt 0:00:31]} 34. Rg2 {[%emt 0:01:55]} b4 {[%emt 0:01:09]} 35. Rc2 {[%emt 0:00:17]} Bb5 {[%emt 0:00:17]} 36. Rf2 {[%emt 0:03:26]} Ke7 {[%emt 0:01:16]} 37. Rc2 {[%emt 0:00:20]} Bd7 {[%emt 0:00:16]} 38. Rg2 {[%emt 0:00:35]} Be8 {[%emt 0:02:02]} 39. Rc2 {[%emt 0:00:13]} Kd7 {[%emt 0:01:20]} 40. Rg2 {[%emt 0:00:46]} Be7 {[%emt 0:00:36]} 41. h6 {[%emt 0:30:42]} g6 {[%emt 0:31:39]} 42. Rc2 {[%emt 0:01:49]} Kd8 {[%emt 0:00:18]} 43. Rg2 {[%emt 0:00:27]} Bd6 {[%emt 0:00:21]} 44. Rc2 {[%emt 0:00:20]} Bd7 {[%emt 0:00:06]} 45. Rc1 {[%emt 0:00:25]} Ke7 {[%emt 0:00:20]} 46. Rc2 {[%emt 0:00:16]} f6 {[%emt 0:00:12]} 47. Rg2 {[%emt 0:03:08]} fxg5 {[%emt 0:00:35]} 48. fxg5 {[%emt 0:00:17]} e5 {[%emt 0:00:07]} 49. Rc2 {[%emt 0:00:00]} Ke6 {[%emt 0:00:00]} 50. dxe5 {[%emt 0:00:00]} Kxe5 {[%emt 0:00:00]} 51. f4+ {[%emt 0:00:00]} Kf5 {[%emt 0:00:00]} 52. Kd4 {[%emt 0:00:00]} Be6 {[%emt 0:00:00]} 53. Rc6 {[%emt 0:00:00]} Bxf4 {[%emt 0:00:00]} 54. Kc5 {[%emt 0:00:00]} Bxg5 {[%emt 0:00:00]} 55. Kxb4 {[%emt 0:00:00]} Bxh6 {[%emt 0:00:00]} 56. a4 {[%emt 0:00:00]} d4 {[%emt 0:00:00]} 57. a5 {[%emt 0:00:00]} Bf8+ {[%emt 0:00:00]} 58. Kb5 {[%emt 0:00:00]} d3 {[%emt 0:00:00]} 59. Rc1 {[%emt 0:00:00]} d2 {[%emt 0:00:00]} 60. Rf1+ {[%emt 0:00:00]} Ke5 {[%emt 0:00:00]} 61. a6 {[%emt 0:00:00]} Bxb3 {[%emt 0:00:00]} 62. a7 {[%emt 0:00:00]} Bd5 {[%emt 0:00:00]} 63. Kb6 {[%emt 0:00:00]} Kd4 {[%emt 0:00:00]} 64. Kc7 {[%emt 0:00:00]} Bc5 {[%emt 0:00:00]} 65. Kb8 {[%emt 0:00:00]} Bd6+ {[%emt 0:00:58]} 0-1